fUST/lending_fUST_20251003
["ID","MTS","AMOUNT","RATE_DAILY","PERIOD"]
[388897366,1759482366656,500.0,0.00018033,2]
[388897367,1759482375296,500.0,0.00018033,2]
[388897368,1759482375707,3487.70852918,0.00017047,2]
[388897369,1759482375729,10000.01,0.00017047,2]
[388897370,1759482375757,6532.17087182,0.00017047,2]
[388897372,1759482402000,160.0,0.00025,30]
[388897373,1759482402741,160.0,0.00025,30]
[388897374,1759482412280,160.0,0.00018,2]
[388897375,1759482412900,160.0,0.00018,2]
[388897376,1759482413557,160.0,0.00018,2]
[388897378,1759482423212,163.390116,0.000245,30]
[388897379,1759482423833,163.390116,0.00017714,2]
[388897381,1759482478114,160.0,0.00018,2]
[388897382,1759482485221,666.0,0.00017036,2]
[388897384,1759482489802,159.0,0.00018,2]
[388897385,1759482504993,166.949971,0.000245,30]
[388897386,1759482519383,160.0,0.000287,120]
[388897387,1759482525865,160.0,0.000287,120]
[388897388,1759482536182,1462.15950602,0.00017746,2]
[388897389,1759482556345,253.41,0.00028767,120]
[388897390,1759482572297,468.80559098,0.00017933,2]
[388897391,1759482588124,-1200.0,0.00018032,2]
[388897392,1759482588153,-500.0,0.00018032,2]
[388897393,1759482588180,-300.0,0.00018032,2]
[388897394,1759482588208,-500.0,0.00018032,2]
[388897395,1759482588236,-770.83,0.00018032,2]
[388897396,1759482588269,-1301.84,0.00018032,2]
[388897397,1759482594084,-500.0,0.00018032,2]
[388897398,1759482596223,-686.094787,0.00018033,2]
[388897399,1759482596482,-10000.01,0.00018033,2]
[388897400,1759482598135,-2246.62744323,0.00018033,2]
[388897401,1759482598158,-5506.75511354,0.00018033,2]
[388897402,1759482602143,-300.0,0.00018032,2]
[388897403,1759482602171,-300.0,0.00018032,2]
[388897404,1759482602198,-500.0,0.00018033,2]
[388897405,1759482602226,-154.96545642,0.00018033,2]
[388897406,1759482602255,-500.0,0.00018033,2]
[388897407,1759482602299,-500.0,0.00018033,2]
[388897408,1759482602345,-2338.64,0.00018033,2]
[388897409,1759482602400,-312.79908716,0.00018033,2]
[388897410,1759482602558,-187.20091284,0.00018033,2]
[388897411,1759482604192,-679.97,0.00018033,2]
[388897412,1759482604223,-563.9,0.00018033,2]
[388897413,1759482604254,-547.25,0.00018033,2]
[388897414,1759482604290,-500.0,0.00018033,2]
[388897415,1759482604322,-500.0,0.00018033,2]
[388897416,1759482604355,-624.63,0.00018033,2]
[388897417,1759482604386,-500.0,0.00018033,2]
[388897418,1759482604416,-951.62,0.00018033,2]
[388897419,1759482604826,-265.27,0.00018033,2]
[388897420,1759482604854,-500.0,0.00018033,2]
[388897421,1759482604882,-1258.82,0.00018033,2]
[388897422,1759482604912,-2452.07,0.00018033,2]
[388897423,1759482604941,-500.0,0.00018033,2]
[388897424,1759482605165,-265.27,0.00018033,2]
[388897425,1759482605186,-47.69,0.00018033,2]
[388897426,1759482605220,4215.13972303,0.00017934,2]
[388897427,1759482606338,-1200.0,0.00018032,2]
[388897428,1759482606369,-187.04,0.00018033,2]
[388897429,1759482606398,-500.0,0.00018033,2]
[388897430,1759482606428,-500.0,0.00018033,2]
[388897431,1759482606456,-500.0,0.00018033,2]
[388897432,1759482606485,-387.89030729,0.00018033,2]
[388897433,1759482606518,-856.46,0.00018033,2]
[388897434,1759482606547,-851.46938542,0.00018033,2]
[388897435,1759482606951,-34.29061458,0.00018033,2]
[388897436,1759482606980,-574.67,0.00018033,2]
[388897437,1759482607009,-500.0,0.00018034,2]
[388897438,1759482607038,-500.0,0.00018034,2]
[388897439,1759482607066,-485.73006472,0.00018034,2]
[388897440,1759482607093,-500.0,0.00018034,2]
[388897441,1759482607122,-545.82516795,0.00018034,2]
[388897442,1759482607150,-500.0,0.00018034,2]
[388897443,1759482607178,-399.1852243,0.00018034,2]
[388897444,1759482607209,-487.49729469,0.00018034,2]
[388897445,1759482607257,-437.53071596,0.00018034,2]
[388897446,1759482610217,-70.5518356,0.00018034,2]
[388897447,1759482610245,-487.46300389,0.00018034,2]
[388897448,1759482610276,-490.24272852,0.00018034,2]
[388897449,1759482610303,-487.53361917,0.00018034,2]
[388897450,1759482610507,-500.0,0.00018034,2]
[388897451,1759482610537,-500.0,0.00018034,2]
[388897452,1759482610566,-500.0,0.00018034,2]
[388897453,1759482610593,-1947.47,0.00018034,2]
[388897454,1759482610755,-500.0,0.00018034,2]
[388897455,1759482610785,-500.0,0.00018034,2]
[388897456,1759482610814,-500.0,0.00018034,2]
[388897457,1759482610843,-500.0,0.00018034,2]
[388897458,1759482610873,-500.0,0.00018034,2]
[388897459,1759482610901,-500.0,0.00018034,2]
[388897460,1759482610929,-414.7634282,0.00018034,2]
[388897461,1759482610959,-500.0,0.00018034,2]
[388897462,1759482610988,-568.43,0.00018034,2]
[388897463,1759482611017,-500.0,0.00018034,2]
[388897464,1759482614196,-500.0,0.00018032,2]
[388897465,1759482614225,-500.0,0.00018034,2]
[388897466,1759482614253,-500.0,0.00018034,2]
[388897467,1759482614287,-428.89858044,0.00018034,2]
[388897468,1759482614317,-500.0,0.00018034,2]
[388897469,1759482614350,-500.0,0.00018034,2]
[388897470,1759482614379,-500.0,0.00018034,2]
[388897471,1759482614410,-500.0,0.00018034,2]
[388897472,1759482614442,-500.0,0.00018034,2]
[388897473,1759482614471,-500.0,0.00018034,2]
[388897474,1759482614590,-500.0,0.00018034,2]
[388897475,1759482614620,-1556.98,0.00018034,2]
[388897476,1759482614649,-500.0,0.00018034,2]
[388897477,1759482614678,-500.0,0.00018034,2]
[388897478,1759482614707,-500.0,0.00018034,2]
[388897479,1759482614738,-500.0,0.00018034,2]
[388897480,1759482614765,-42.37,0.00018034,2]
[388897481,1759482618265,-604.71059077,0.00018034,2]
[388897482,1759482618303,-500.0,0.00018034,2]
[388897483,1759482618334,-500.0,0.00018034,2]
[388897484,1759482618361,-1801.31,0.00018034,2]
[388897485,1759482618389,-500.0,0.00018034,2]
[388897486,1759482618499,-3273.3870014,0.00018034,2]
[388897487,1759482618529,-500.0,0.00018034,2]
[388897488,1759482618558,-500.0,0.00018034,2]
[388897489,1759482618587,-500.0,0.00018034,2]
[388897490,1759482618761,-131.12716845,0.00018034,2]
[388897491,1759482618775,-368.87283155,0.00018034,2]
[388897492,1759482618785,-84.36316565,0.00018034,2]
[388897494,1759482625404,744.84,0.00018025,3]
[388897495,1759482626994,500.0,0.00027397,120]
[388897534,1759482632709,-1379.52,0.00018033,2]
[388897535,1759482632719,-500.0,0.00018033,2]
[388897536,1759482632728,-935.27,0.00018033,2]
[388897538,1759482632738,-250.0,0.00018034,2]
[388897539,1759482632747,-250.0,0.00018034,2]
[388897540,1759482632757,-250.0,0.00018034,2]
[388897541,1759482632767,-250.0,0.00018034,2]
[388897543,1759482632775,-250.0,0.00018034,2]
[388897544,1759482632784,-250.0,0.00018034,2]
[388897545,1759482632794,-250.0,0.00018034,2]
[388897546,1759482632803,-250.0,0.00018034,2]
[388897548,1759482632812,-250.0,0.00018034,2]
[388897549,1759482632822,-250.0,0.00018034,2]
[388897551,1759482632831,-250.0,0.00018034,2]
[388897552,1759482632840,-250.0,0.00018034,2]
[388897553,1759482632849,-250.0,0.00018034,2]
[388897554,1759482632858,-250.0,0.00018034,2]
[388897555,1759482632867,-284.78970627,0.00018034,2]
[388897556,1759482632876,-415.63683435,0.00018034,2]
[388897557,1759482632885,-500.0,0.00018034,2]
[388897558,1759482632894,-500.0,0.00018034,2]
[388897559,1759482632904,-500.0,0.00018034,2]
[388897560,1759482632914,-500.0,0.00018034,2]
[388897561,1759482632923,-943.46,0.00018034,2]
[388897562,1759482632932,-500.0,0.00018034,2]
[388897563,1759482632942,-500.0,0.00018034,2]
[388897564,1759482632952,-886.73,0.00018034,2]
[388897565,1759482632963,-572.62233146,0.00018034,2]
[388897566,1759482632973,-318.35667974,0.00018034,2]
[388897567,1759482632982,-1707.51,0.00018034,2]
[388897568,1759482632992,-500.0,0.00018034,2]
[388897569,1759482633002,-500.0,0.00018034,2]
[388897570,1759482633011,-502.60763161,0.00018034,2]
[388897571,1759482633020,-612.16,0.00018034,2]
[388897572,1759482633030,-388.04042058,0.00018034,2]
[388897573,1759482633039,-500.0,0.00018034,2]
[388897574,1759482633050,-500.0,0.00018034,2]
[388897575,1759482633059,-1231.99,0.00018034,2]
[388897576,1759482633068,-500.0,0.00018034,2]
[388897577,1759482633078,-2361.15,0.00018034,2]
[388897578,1759482633087,-500.0,0.00018034,2]
[388897579,1759482633097,-3981.56,0.00018034,2]
[388897580,1759482633107,-573.08,0.00018034,2]
[388897581,1759482633116,-567.29,0.00018034,2]
[388897582,1759482633126,-500.0,0.00018034,2]
[388897583,1759482633135,-3791.45,0.00018034,2]
[388897584,1759482633145,-2444.04,0.00018034,2]
[388897585,1759482633155,-500.0,0.00018034,2]
[388897586,1759482633164,-500.0,0.00018034,2]
[388897587,1759482633173,-500.0,0.00018034,2]
[388897588,1759482633183,-600.32,0.00018034,2]
[388897589,1759482633192,-708.18,0.00018034,2]
[388897590,1759482633201,-500.0,0.00018034,2]
[388897591,1759482633211,-7022.270189,0.00018034,2]
[388897592,1759482633220,-569.27,0.00018034,2]
[388897593,1759482633229,-981.91,0.00018034,2]
[388897594,1759482633239,-500.0,0.00018034,2]
[388897595,1759482633248,-500.0,0.00018034,2]
[388897596,1759482633258,-500.0,0.00018034,2]
[388897597,1759482633267,-1089.99,0.00018034,2]
[388897598,1759482633282,-500.0,0.00018034,2]
[388897599,1759482633291,-500.0,0.00018034,2]
[388897600,1759482633301,-1156.8,0.00018034,2]
[388897601,1759482633309,-8141.07,0.00018034,2]
[388897602,1759482633321,-500.0,0.00018034,2]
[388897603,1759482633331,-622.58,0.00018034,2]
[388897604,1759482633341,-500.0,0.00018034,2]
[388897605,1759482633353,-500.0,0.00018034,2]
[388897606,1759482633362,-527.8,0.00018034,2]
[388897607,1759482633371,-202.1558788,0.00018034,2]
[388897608,1759482633393,-297.8441212,0.00018034,2]
[388897609,1759482633402,-640.36,0.00018034,2]
[388897610,1759482633412,-831.21,0.00018034,2]
[388897611,1759482633422,-324.02154141,0.00018034,2]
[388897612,1759482636254,976.96,0.00018025,3]
[388897633,1759482638408,-166.0,0.00018034,2]
[388897634,1759482638418,-175.97845859,0.00018034,2]
[388897635,1759482638427,-500.0,0.00018034,2]
[388897636,1759482638436,-1047.4701078,0.00018034,2]
[388897637,1759482638445,-1337.25,0.00018034,2]
[388897638,1759482638454,-990.5563672,0.00018034,2]
[388897639,1759482638466,-2854.3236328,0.00018034,2]
[388897640,1759482638475,-416.00473149,0.00018034,2]
[388897641,1759482638487,-83.99526851,0.00018034,2]
[388897642,1759482638496,-2672.11,0.00018034,2]
[388897643,1759482638505,-636.53,0.00018034,2]
[388897644,1759482638515,-1254.5,0.00018034,2]
[388897645,1759482638524,-1000.46,0.00018034,2]
[388897646,1759482638533,-1234.49,0.00018034,2]
[388897647,1759482638543,-500.0,0.00018034,2]
[388897648,1759482638551,-500.0,0.00018034,2]
[388897649,1759482638561,-198.59450981,0.00018034,2]
[388897650,1759482638590,-23.1802799,0.00018034,2]
[388897651,1759482638599,-1915.22,0.00018034,2]
[388897652,1759482638608,-1023.93,0.00018034,2]
[388897653,1759482638617,-2217.02,0.00018034,2]
[388897654,1759482638627,-717.95,0.00018034,2]
[388897655,1759482638637,-151.0,0.00018034,2]
[388897656,1759482638648,-151.0,0.00018034,2]
[388897657,1759482638658,-151.0,0.00018034,2]
[388897658,1759482638667,-151.0,0.00018034,2]
[388897659,1759482638677,-151.0,0.00018034,2]
[388897660,1759482638687,-500.0,0.00018034,2]
[388897661,1759482638697,-227.25856567,0.00018034,2]
[388897662,1759482638707,-747.8,0.00018034,2]
[388897663,1759482638716,-500.0,0.00018034,2]
[388897664,1759482638727,-154.21514413,0.00018034,2]
[388897665,1759482638737,-901.99,0.00018034,2]
[388897666,1759482638746,-1026.22,0.00018034,2]
[388897667,1759482638757,-500.0,0.00018034,2]
[388897668,1759482638766,-673.26,0.00018034,2]
[388897669,1759482638776,-151.0,0.00018034,2]
[388897670,1759482638786,-615.11,0.00018034,2]
[388897671,1759482638795,-751.47,0.00018034,2]
[388897672,1759482638806,-516.67,0.00018034,2]
[388897673,1759482638816,-500.0,0.00018034,2]
[388897674,1759482638826,-491.1870999,0.00018034,2]
[388897675,1759482638836,-500.0,0.00018034,2]
[388897676,1759482638846,-600.69451604,0.00018034,2]
[388897677,1759482638858,-390.9790112,0.00018034,2]
[388897678,1759482638870,-75.77647276,0.00018034,2]
[388897679,1759482638880,-399.16009266,0.00018034,2]
[388897680,1759482638890,-500.0,0.00018034,2]
[388897681,1759482638898,-1631.38,0.00018034,2]
[388897682,1759482638908,-4832.07,0.00018034,2]
[388897683,1759482638918,-500.0,0.00018034,2]
[388897684,1759482638927,-1829.19,0.00018034,2]
[388897685,1759482638937,-500.0,0.00018034,2]
[388897686,1759482638947,-2437.04,0.00018034,2]
[388897687,1759482638956,-1270.79,0.00018034,2]
[388897688,1759482638965,-500.0,0.00018034,2]
[388897689,1759482638975,-2262.03,0.00018034,2]
[388897690,1759482638985,-500.0,0.00018035,2]
[388897691,1759482638995,-500.0,0.00018035,2]
[388897692,1759482639005,-607.66,0.00018035,2]
[388897693,1759482639014,-175.6861938,0.00018035,2]
[388897694,1759482639023,-502.42419369,0.00018035,2]
[388897695,1759482639033,-500.0,0.00018035,2]
[388897696,1759482639043,-500.0,0.00018035,2]
[388897697,1759482639053,-939.2,0.00018035,2]
[388897698,1759482639062,-500.0,0.00018035,2]
[388897699,1759482639073,-500.0,0.00018035,2]
[388897700,1759482639083,-500.0,0.00018035,2]
[388897701,1759482639092,-500.0,0.00018035,2]
[388897702,1759482639103,-792.55,0.00018035,2]
[388897703,1759482639113,-500.0,0.00018035,2]
[388897704,1759482639122,-500.0,0.00018035,2]
[388897705,1759482639132,-500.0,0.00018035,2]
[388897706,1759482639140,-500.0,0.00018035,2]
[388897707,1759482639149,-161.91414948,0.00018035,2]
[388897708,1759482639159,-500.0,0.00018035,2]
[388897709,1759482639168,-500.0,0.00018035,2]
[388897710,1759482639178,-500.0,0.00018035,2]
[388897711,1759482639187,-500.0,0.00018035,2]
[388897712,1759482639196,-500.0,0.00018035,2]
[388897713,1759482639206,-500.0,0.00018035,2]
[388897714,1759482639215,-1039.8,0.00018035,2]
[388897715,1759482639225,-500.0,0.00018035,2]
[388897716,1759482639234,-500.0,0.00018035,2]
[388897717,1759482639243,-500.0,0.00018035,2]
[388897718,1759482639253,-828.19,0.00018035,2]
[388897719,1759482639262,-621.44,0.00018035,2]
[388897720,1759482639272,-985.19,0.00018035,2]
[388897721,1759482639286,-500.0,0.00018035,2]
[388897722,1759482639296,-500.0,0.00018035,2]
[388897723,1759482639306,-500.0,0.00018035,2]
[388897724,1759482639316,-500.0,0.00018035,2]
[388897725,1759482639327,-2859.68,0.00018035,2]
[388897726,1759482639336,-500.0,0.00018035,2]
[388897727,1759482639538,-500.0,0.00018035,2]
[388897728,1759482639548,-500.0,0.00018035,2]
[388897729,1759482639558,-520.0,0.00018035,3]
[388897730,1759482639568,-500.0,0.00018035,2]
[388897731,1759482639578,-500.0,0.00018035,2]
[388897732,1759482639588,-500.0,0.00018035,2]
[388897733,1759482639597,-500.0,0.00018035,2]
[388897734,1759482639607,-500.0,0.00018035,2]
[388897735,1759482639616,-500.0,0.00018035,2]
[388897736,1759482639626,-500.0,0.00018035,2]
[388897737,1759482639635,-954.18,0.00018035,2]
[388897738,1759482639644,-500.0,0.00018035,2]
[388897739,1759482639654,-500.0,0.00018035,2]
[388897740,1759482639663,-500.0,0.00018035,2]
[388897741,1759482639673,-539.76,0.00018035,2]
[388897742,1759482639682,-500.0,0.00018035,2]
[388897743,1759482639691,-562.61,0.00018035,2]
[388897744,1759482639700,-500.0,0.00018035,2]
[388897745,1759482639709,-614.4,0.00018035,2]
[388897746,1759482639718,-1994.53,0.00018035,2]
[388897747,1759482639727,-500.0,0.00018035,2]
[388897748,1759482639737,-500.0,0.00018035,2]
[388897749,1759482639747,-500.0,0.00018035,2]
[388897750,1759482639757,-500.0,0.00018035,2]
[388897751,1759482639767,-847.03,0.00018035,2]
[388897752,1759482639777,-547.57,0.00018035,2]
[388897753,1759482639787,-500.0,0.00018035,2]
[388897754,1759482639797,-500.0,0.00018035,2]
[388897755,1759482639807,-500.0,0.00018035,2]
[388897756,1759482639817,-1925.4,0.00018035,2]
[388897757,1759482639826,-935.84,0.00018035,2]
[388897758,1759482639835,-500.0,0.00018035,2]
[388897759,1759482639845,-794.94,0.00018035,2]
[388897760,1759482639854,-500.0,0.00018035,2]
[388897761,1759482639864,-759.86,0.00018035,2]
[388897762,1759482639873,-956.22,0.00018035,2]
[388897763,1759482639884,-636.41,0.00018035,2]
[388897764,1759482639893,-779.64,0.00018035,2]
[388897765,1759482639903,-15.36504142,0.00018035,2]
[388897766,1759482639916,-484.63495858,0.00018035,2]
[388897768,1759482639925,-500.0,0.00018035,2]
[388897769,1759482639935,-500.0,0.00018035,2]
[388897770,1759482639944,-500.0,0.00018035,2]
[388897771,1759482639953,-500.0,0.00018035,2]
[388897772,1759482639962,-1176.55,0.00018035,2]
[388897773,1759482639972,-1003.2,0.00018035,2]
[388897775,1759482639982,-680.0443832,0.00018035,2]
[388897789,1759482641852,561.7952265,0.00017935,2]
[388897790,1759482642356,500.0,0.00018033,2]
[388897803,1759482644170,575.31,0.00018034,2]
[388897811,1759482646297,500.0,0.00018034,2]
[388897812,1759482646531,-487.6456168,0.00018035,2]
[388897813,1759482646541,-177.45438312,0.00018035,2]
[388897894,1759482647725,500.0,0.00018034,2]
[388897898,1759482650614,500.0,0.00018033,2]
[388897899,1759482650898,500.0,0.00018033,2]
[388897900,1759482651007,2740.52,0.00018034,2]
[388897901,1759482651839,500.0,0.00018034,2]
[388897902,1759482653465,1348.34,0.00018034,2]
[388897903,1759482655738,1138.34,0.00018033,2]
[388897904,1759482655961,562.3,0.00018034,2]
[388897905,1759482659856,73.4047735,0.00018034,2]
[388897906,1759482659877,541.2952265,0.00018034,2]
[388897907,1759482660050,500.0,0.00018033,2]
[388897908,1759482660369,500.0,0.00018034,2]
[388897909,1759482661895,613.33,0.00018034,2]
[388897911,1759482662670,2262.77,0.00018033,2]
[388897912,1759482662760,-322.54561688,0.00018035,2]
[388897913,1759482662789,-504.89,0.00018035,2]
[388897914,1759482662818,-1946.41,0.00018035,2]
[388897915,1759482662846,-255.04086137,0.00018035,2]
[388897916,1759482662874,-273.25112443,0.00018035,2]
[388897917,1759482662901,-797.68,0.00018035,2]
[388897918,1759482662929,-500.0,0.00018035,2]
[388897919,1759482663153,300.0,0.00018034,2]
[388897920,1759482663908,500.0,0.00018033,2]
[388897921,1759482665520,163.390116,0.000245,30]
[388897922,1759482666671,-1189.98,0.00018035,2]
[388897923,1759482666700,-613.68,0.00018035,2]
[388897924,1759482666727,-500.0,0.00018035,2]
[388897925,1759482666756,-500.0,0.00018035,2]
[388897926,1759482666783,-500.0,0.00018035,2]
[388897927,1759482666810,-500.0,0.00018035,2]
[388897928,1759482666838,-762.76,0.00018035,2]
[388897929,1759482668009,500.0,0.00018034,2]
[388897930,1759482668717,-991.12,0.00018035,2]
[388897931,1759482668747,-1831.59,0.00018035,2]
[388897932,1759482668774,-500.0,0.00018035,2]
[388897933,1759482668800,-500.0,0.00018035,2]
[388897934,1759482668827,-174.79399121,0.00018035,2]
[388897935,1759482668854,-509.3,0.00018035,2]
[388897936,1759482668880,-486.40201758,0.00018035,2]
[388897937,1759482680950,301.15,0.00028767,120]
[388897944,1759482761727,846.473526,0.00017036,2]
[388897945,1759482770260,370000.0,0.00017934,2]
[388897947,1759482844077,448.59367672,0.00017933,2]
[388897948,1759482847554,-1200.0,0.00018031,2]
[388897949,1759482847583,-300.0,0.00018031,2]
[388897950,1759482847612,-3366.54,0.00018032,2]
[388897951,1759482847768,-266.93,0.00018032,2]
[388897952,1759482847798,-500.0,0.00018032,2]
[388897953,1759482847826,-980.89,0.00018032,2]
[388897954,1759482847855,-500.0,0.00018032,2]
[388897955,1759482847883,-500.0,0.00018032,2]
[388897956,1759482847911,-500.0,0.00018032,2]
[388897957,1759482847938,-536.5,0.00018032,2]
[388897958,1759482847966,-1081.71,0.00018032,2]
[388897959,1759482849351,-267.95,0.00018032,2]
[388897960,1759482849381,-640.38,0.00018032,2]
[388897961,1759482849415,-500.0,0.00018032,2]
[388897962,1759482849446,-1943.27,0.00018032,2]
[388897963,1759482849475,-1492.1,0.00018032,2]
[388897964,1759482853477,-716.65,0.00018032,2]
[388897965,1759482853504,-864.41,0.00018032,2]
[388897966,1759482853532,-500.0,0.00018032,2]
[388897967,1759482853559,-500.0,0.00018032,2]
[388897968,1759482853585,-500.0,0.00018033,2]
[388897969,1759482853613,-500.0,0.00018033,2]
[388897970,1759482853641,-500.0,0.00018033,2]
[388897971,1759482861452,-3815.66,0.00018033,2]
[388897972,1759482861480,-582.34,0.00018033,2]
[388897973,1759482861508,-525.34,0.00018033,2]
[388897974,1759482881977,155.0,9e-07,2]
[388897975,1759482886387,168.0,0.00017915,2]
[388897985,1759482930980,158.0,0.00027812,120]
[388897986,1759482934298,25477.78,0.00017935,2]
[388897987,1759482938389,500.0,0.00027397,120]
[388897988,1759482943296,-316.25,0.00018025,3]
[388897989,1759482943324,-158.13,0.00018025,3]
[388897990,1759482943364,-474.41,0.00018025,3]
[388897991,1759482943394,-300.0,0.00018031,2]
[388897992,1759482943424,-300.0,0.00018031,2]
[388897993,1759482943711,-300.0,0.00018031,2]
[388897994,1759482943740,-300.0,0.00018031,2]
[388897995,1759482943769,-1200.0,0.00018031,2]
[388897996,1759482943796,-500.0,0.00018032,2]
[388897997,1759482943825,-500.0,0.00018032,2]
[388897998,1759482945191,-2257.73,0.00018032,2]
[388897999,1759482945220,-227.18732785,0.00018032,2]
[388898000,1759482945260,-520.37536762,0.00018032,2]
[388898001,1759482945287,-500.0,0.00018032,2]
[388898002,1759482945315,-576.41,0.00018032,2]
[388898003,1759482945345,-500.0,0.00018032,2]
[388898004,1759482945378,-336.60460906,0.00018032,2]
[388898005,1759482949274,-163.39539094,0.00018032,2]
[388898006,1759482949309,-646.34,0.00018032,2]
[388898007,1759482949349,-306.84153993,0.00018032,2]
[388898008,1759482949385,-1347.4,0.00018032,2]
[388898009,1759482949423,-1163.09,0.00018032,2]
[388898010,1759482949456,-153.33,0.00018033,2]
[388898011,1759482949491,-500.0,0.00018033,2]
[388898012,1759482949529,-500.0,0.00018033,2]
[388898013,1759482982375,884.98389549,0.00017934,2]
[388898014,1759482983692,-423.96,0.00018025,3]
[388898015,1759482983721,-1264.78,0.00018032,2]
[388898016,1759482983751,-500.0,0.00018032,2]
[388898017,1759482983782,-521.48421286,0.00018032,2]
[388898018,1759482983812,-2111.41157428,0.00018032,2]
[388898019,1759482984026,-356.73842572,0.00018032,2]
[388898020,1759482984058,-300.0,0.00018032,2]
[388898021,1759482984087,-500.0,0.00018032,2]
[388898022,1759482984116,-500.0,0.00018032,2]
[388898023,1759482984146,-500.0,0.00018032,2]
[388898024,1759482984175,-900.06,0.00018033,2]
[388898025,1759482984202,-500.0,0.00018033,2]
[388898026,1759482984231,-500.0,0.00018033,2]
[388898027,1759482984261,-835.14,0.00018033,2]
[388898028,1759482985635,-1866.33,0.00018033,2]
[388898029,1759482985662,-500.0,0.00018033,2]
[388898030,1759482985691,-261.541,0.00018033,2]
[388898031,1759482985720,-500.0,0.00018033,2]
[388898032,1759482985749,-500.0,0.00018033,2]
[388898033,1759482985776,-515.1183383,0.00018033,2]
[388898034,1759482985804,-500.0,0.00018033,2]
[388898035,1759482989635,-500.0,0.00018032,2]
[388898036,1759482989662,-500.0,0.00018032,2]
[388898037,1759482989690,-2560.77,0.00018033,2]
[388898038,1759482989718,-776.5,0.00018033,2]
[388898039,1759482989746,-366.69,0.00018033,2]
[388898040,1759482991639,-592.09,0.00018033,2]
[388898041,1759482991668,-500.0,0.00018033,2]
[388898042,1759482991696,-1314.32,0.00018033,2]
[388898043,1759482991725,-500.0,0.00018033,2]
[388898044,1759482991753,-2062.55,0.00018033,2]
[388898045,1759482993650,-62.09,0.00018033,2]
[388898046,1759482993679,-507.847,0.00018033,2]
[388898047,1759482993708,-500.0,0.00018033,2]
[388898048,1759482993739,-500.0,0.00018033,2]
[388898049,1759482993768,-611.28,0.00018033,2]
[388898050,1759482993799,-1150.91,0.00018033,2]
[388898051,1759482993830,-1545.516,0.00018033,2]
[388898052,1759482995688,-534.97,0.00018032,2]
[388898053,1759482995720,-244.724,0.00018033,2]
[388898054,1759482995751,-1752.97,0.00018033,2]
[388898055,1759482995781,-720.16,0.00018033,2]
[388898056,1759482995811,-500.0,0.00018033,2]
[388898057,1759482997704,-2516.76,0.00018033,2]
[388898058,1759482997733,-500.0,0.00018033,2]
[388898059,1759482997764,-500.0,0.00018033,2]
[388898060,1759482997795,-500.0,0.00018033,2]
[388898061,1759482997954,-4630.73,0.00018033,2]
[388898062,1759482997984,-238.55,0.00018033,2]
[388898063,1759483026243,3279.2865004,0.00017172,2]
[388898064,1759483048197,-211.98,0.00018025,3]
[388898065,1759483048231,-1200.0,0.00018031,2]
[388898066,1759483048265,-500.0,0.00018032,2]